Cogmind - Beta 11 X8 *** ADVENTURER MODE // 2021.10.22 @ 19:02:26 Player: Salamander Result: Destroyed by D-53 Grenadier with Mini Grenade Launcher Performance ------------- Evolutions (0) 0 Regions Visited (2) 400 Robots Destroyed (15) 75 Value Destroyed (216) 216 Prototype IDs (2) 40 Alien Tech Used (0) 0 Bonus (0) 0 TOTAL SCORE: 731 Bonus ------- None Cogmind --------- Core Integrity 0/250 Matter 204/300 Energy 107/125 System Corruption 0% Temperature Cool (0) Movement Walking (260) Ox2 Location -10/Mines Parts ------- > --- POWER (1) -------- Light Ion Engine > --- PROPULSION (2) --- Aluminum Leg Aluminum Leg > --- UTILITY (2) ------ High-capacity Storage Unit > --- WEAPON (2) ------- (None) > --- INVENTORY (20) --- Aluminum Leg Heat Sink Small Storage Unit Light Armor Plating Mini Grenade Launcher Peak State ------------ > --- POWER ------------ Ion Engine > --- PROPULSION ------- Aluminum Leg Aluminum Leg > --- UTILITY ---------- Heat Sink Small Storage Unit > --- WEAPON ----------- Medium Laser Medium Laser > --- INVENTORY -------- Light Ion Engine Aluminum Leg Heavy EM Pulse Gun Assault Rifle EMP Blaster Mini Grenade Launcher Mining Laser [Rating: 8] Favorites ----------- Power Ion Engine Engine Ion Engine Propulsion Aluminum Leg Leg Aluminum Leg Utility Small Storage Unit Device Heat Sink Storage Small Storage Unit Protection Light Armor Plating Weapon Medium Laser Energy Gun Medium Laser Launcher Mini Grenade Launcher Build | -11 -10 -10 ------- Run | Scr Mat Min Slots Evolved . | . . . Power . | . . . Propulsion . | . . . Utility . | . . . Weapon . | . . . Parts Attached 15 | 6 3 6 Power 2 | 1 . 1 Engine 2 | 1 . 1 Core . | . . . Reactor . | . . . Propulsion 4 | 2 1 1 Treads . | . . . Leg 4 | 2 1 1 Wheel . | . . . Hover . | . . . Flight . | . . . Utility 4 | 1 2 1 Device 1 | . 1 . Storage 2 | 1 1 . Processor . | . . . Hackware . | . . . Protection 1 | . . 1 Artifact . | . . . Weapon 5 | 2 . 3 Energy Gun 3 | 2 . 1 Energy Cannon . | . . . Ballistic Gun . | . . . Ballistic Cannon . | . . . Launcher 2 | . . 2 Special Weapon . | . . . Impact Weapon . | . . . Slashing Weapon . | . . . Piercing Weapon . | . . . Special Melee Weapon . | . . . Unidentified Prototypes . | . . . Parts Lost 7 | . 1 6 Power 1 | . . 1 Propulsion 2 | . 1 1 Utility 1 | . . 1 Weapon 3 | . . 3 Highest Loss Streak 5 | . 1 5 Average Slot Usage (%) 94 | . 94 94 Engine 13 | . 14 12 Leg 27 | . 27 28 Device 9 | . 9 9 Storage 14 | . 14 14 Protection 1 | . . 4 Energy Gun 24 | . 28 15 Launcher 2 | . . 8 Naked Turns . | . . . Heaviest Build 54 | 14 50 54 Greatest Support 20 | 20 20 20 Greatest Overweight (x) 4 | 4 2 2 Average Overweight (x) . | . . 2 Largest Inventory Capacity 20 | 8 20 20 Average Capacity 12 | 7 11 20 Most Carried 8 | 2 8 8 Average Carried 6 | 1 7 7 Final Capacity 20 | 8 20 20 Final Carried 8 | 2 8 5 Class Distribution -------------------- 100% | Mutant Dominant Class ---------------- Mutant | -10/Materials Mutant | -10/Mines Resources | -11 -10 -10 ----------- Run | Scr Mat Min Matter Collected 300 | 260 30 10 Remotely . | . . . Salvage Created 403 | 65 303 35 Parts 25 | . 24 1 Haulers Intercepted 1 | . 1 . Recyclers Shooed . | . . . Parts Field Recycled . | . . . Retrieved Matter . | . . . Parts Self-Destructed . | . . . Prevented . | . . . Kills | -11 -10 -10 ------- Run | Scr Mat Min Combat Hostiles Destroyed 21 | . 11 10 Guns 12 | . 11 1 AOE 9 | . . 9 Classes Destroyed 6 | 1 4 1 Hauler 1 | . 1 . Recycler 1 | 1 . . Watcher 1 | . 1 . Swarmer 9 | . 8 1 Grunt 3 | . 3 . Assembled 9 | . . 9 Best Kill Streak 8 | 1 5 8 Combat Bots Only 8 | . 5 8 Max Kills in Single Turn 3 | 1 2 3 Gunslinging 1 | . 1 . Exploded 3 | . . 3 Melee . | . . . Uniques/NPCs Destroyed . | . . . Combat | -11 -10 -10 -------- Run | Scr Mat Min Damage Taken 1042 | . 338 704 Core 254 | . 60 194 Absorbed by Shields . | . . . Core Remaining (%) 100 | 100 . . Volleys Fired 50 | 4 27 19 Largest 2 | 2 2 2 Hottest 100 | 100 100 100 Shots Fired 82 | 8 54 20 Gun 72 | 8 54 10 Cannon . | . . . Launcher 10 | . . 10 Special . | . . . Kinetic . | . . . Thermal 72 | 8 54 10 Explosive 6 | . . 6 Electromagnetic 4 | . . 4 Robot Hit Streak 10 | 7 10 6 Robot Miss Streak 2 | . 2 1 Penetration Max . | . . . Secondary Targets 1 | . 1 . Max Gunslinging Chain 1 | . 1 . Shots Hit Robots 60 | 7 39 14 Core Hits 37 | 2 17 18 Critical Kills . | . . . Critical Parts Destroyed . | . . . Critical Strikes 7 | . 6 1 Burn 7 | . 6 1 Melee Attacks . | . . . Impact . | . . . Slashing . | . . . Piercing . | . . . Sneak Attacks . | . . . Combat Hostiles . | . . . Follow-up Attacks . | . . . Damage Inflicted 1396 | 88 527 781 Guns 717 | 88 527 102 Cannons . | . . . Explosions 679 | . . 679 Melee . | . . . Ramming . | . . . Kinetic . | . . . Thermal 717 | 88 527 102 Explosive 613 | . . 613 Electromagnetic 66 | . . 66 Impact . | . . . Slashing . | . . . Piercing . | . . . Highest Corruption . | . . . Average Corruption . | . . . Corruption Purged . | . . . Overload Shots . | . . . Overflow Damage 13 | . . 13 Projectiles . | . . . Explosions 13 | . . 13 Melee . | . . . Knockbacks . | . . . Impact . | . . . Kinetic . | . . . Secondary . | . . . Self-Inflicted Damage 66 | . . 66 Shots 2 | . . 2 Rammed . | . . . Targets Rammed . | . . . Kicked . | . . . Crushed . | . . . Highest Temperature 276 | 156 276 27 Average Temperature 57 | 80 57 11 Received Heat Transfer 42 | . 42 . Siege Activations . | . . . Robots Corrupted . | . . . Combat Hostiles . | . . . Parts Fried . | . . . Impact Corruptions . | . . . Robots Melted . | . . . Combat Hostiles . | . . . Parts Melted 3 | . 3 . Heat Transferred 2627 | 259 1998 370 Parts Sabotaged . | . . . Parts Stolen . | . . . Parts Stripped . | . . . Power Chain Reactions . | . . . Missiles Intercepted . | . . . Alert | -11 -10 -10 ------- Run | Scr Mat Min Peak Influence 329 | 5 329 133 Initial 108 | . 2 108 Average 144 | . 183 114 Maximum Alert Level 1 | . 1 . Low Security (%) 69 | 100 53 100 Level 1 30 | . 46 . Level 2 . | . . . Level 3 . | . . . Level 4 . | . . . Level 5 . | . . . High Security . | . . . Max Security . | . . . Squads Dispatched 1 | . 1 . Investigation 1 | . 1 . Extermination . | . . . Reinforcement . | . . . Assault . | . . . Garrison . | . . . Intercept . | . . . Construction Impeded . | . . . Haulers Reinforced . | . . . Active Scanning Responses . | . . . Cargo Convoy Interrupts . | . . . Stealth | -11 -10 -10 --------- Run | Scr Mat Min Distress Signals . | . . . Communications Jammed . | . . . Distress Signals . | . . . Times Spotted 25 | . 14 11 Peak Tracking Total 7 | . 4 7 Tactical Retreats . | . . . Traps | -11 -10 -10 ------- Run | Scr Mat Min Traps Triggered 1 | . 1 . Indirectly . | . . . Trap Hack Attempts . | . . . Triggered . | . . . Disarmed . | . . . Reprogrammed . | . . . Reused . | . . . Traps Extracted . | . . . Installed . | . . . Triggered . | . . . Machines | -11 -10 -10 ---------- Run | Scr Mat Min Machines Disabled . | . . . Max in Single Turn . | . . . Machines Sabotaged . | . . . Garrisons Compromised . | . . . Overloaded Fab Kills . | . . . Hacking | -11 -10 -10 --------- Run | Scr Mat Min Machines Accessed 4 | . 4 . Terminals 3 | . 3 . Fabricators . | . . . Repair Stations . | . . . Recycling Units 1 | . 1 . Scanalyzers . | . . . Garrison Access . | . . . Total Hacks 12 | . 12 . Successful 8 | . 8 . Failed 4 | . 4 . Catastrophic . | . . . Database Lockouts . | . . . Manual 2 | . 2 . Terminals 11 | . 11 . Fabricators . | . . . Repair Stations . | . . . Recycling Units 1 | . 1 . Scanalyzers . | . . . Garrison Access . | . . . Terminal Hacks 6 | . 6 . Robot Analysis 1 | . 1 . Prototype ID Bank 1 | . 1 . Locate Traps 1 | . 1 . Hauler Manifests 1 | . 1 . Zone Layout 2 | . 2 . Fabricator Hacks . | . . . Repair Station Hacks . | . . . Recycling Unit Hacks . | . . . Scanalyzer . | . . . Garrison Access Hacks . | . . . Unauthorized Hacks 2 | . 2 . Terminals 1 | . 1 . Botnet 1 | . 1 . Fabricators . | . . . Repair Stations . | . . . Recycling Units 1 | . 1 . Tunnel 1 | . 1 . Scanalyzers . | . . . Garrison Access . | . . . Data Cores Recovered . | . . . Used . | . . . Hacking Detections 3 | . 3 . Full Trace Events . | . . . Feedback Events . | . . . Feedback Blocked . | . . . Robot Schematics Acquired . | . . . Robots Built . | . . . Authchips . | . . . Time . | . . . Total Robot Build Rating . | . . . Part Schematics Acquired . | . . . Parts Built . | . . . Authchips . | . . . Time . | . . . Total Part Build Rating . | . . . Parts Repaired . | . . . Time . | . . . Parts Recycled . | . . . Recycled Matter . | . . . Retrieved Matter . | . . . Retrieved Components . | . . . Parts Scanalyzed . | . . . Part Schematics Acquired . | . . . Parts Damaged . | . . . Bothacking | -11 -10 -10 ------------ Run | Scr Mat Min Used RIF Installer . | . . . Robots Hacked . | . . . Non-combat . | . . . Combat . | . . . Robot Hacks Applied . | . . . Relay Couplers Released . | . . . Robots Rewired . | . . . Allies Hacked . | . . . Hacks Repelled . | . . . Allies | -11 -10 -10 -------- Run | Scr Mat Min Total Allies . | . . . Largest Group . | . . . Highest-Rated Group . | . . . Highest-Rated Ally . | . . . Total Orders . | . . . Ally Attacks . | . . . Total Damage . | . . . Kills . | . . . Allies Corrupted . | . . . Allies Melted . | . . . Intel | -11 -10 -10 ------- Run | Scr Mat Min Robot Analysis Total 1 | . 1 . Derelict Logs Recovered . | . . . Drone Launches . | . . . Drone Recoveries . | . . . Exploration | -11 -10 -10 ------------- Run | Scr Mat Min Turns Passed 584 | 77 378 129 Spaces Moved 254 | 39 189 26 Core 12 | 12 . . Treads . | . . . Legs 242 | 27 189 26 Wheels . | . . . Hover . | . . . Flight . | . . . Fastest Speed 50 | 50 120 260 Average Speed 158 | 140 148 260 Slowest Speed 260 | 250 260 260 Overloaded Moves . | . . . Propulsion Burnouts . | . . . Robots Hopped . | . . . Cave-ins Triggered . | . . . Exploration Rate (%) 18 | 4 40 11 Regions Visited 2 Branch Regions 1 Pre-discovered Areas 1 | . 1 . Known Exits Taken . | . . . Unknown Exits Taken 2 | 1 1 . Scrap Searched . | . . . Spaces Dug 9 | . . 9 Terrain Destroyed 53 | . . 53 Melee . | . . . Projectile . | . . . AOE 53 | . . 53 Terrain Rammed . | . . . Walls Destroyed . | . . . Machines Disabled . | . . . Actions | -11 -10 -10 --------- Run | Scr Mat Min Total 352 | 50 235 67 Wait 21 | . 5 16 Move 252 | 38 188 26 Hop . | . . . Pick Up 11 | 2 9 . Fast Attach 7 | 6 1 . Attach 4 | . 1 3 Detach . | . . . Swap 4 | . 1 3 Drop 3 | . 3 . Fire 50 | 4 27 19 Melee . | . . . Ram . | . . . Kick . | . . . Crush . | . . . Escape Stasis . | . . . Rewire . | . . . Trap . | . . . Miscellaneous . | . . . Route ------- -11/Scrapyard -10/Materials (discovered 2 exits: [Mat] / [*Min]) -10/Mines History --------- Turn | Location | Event 5 | -11/Scrapyard | Discovered new exit (range 16) 78 | -11/Scrapyard | Entered Materials 293 | -10/Materials | Discovered new exit (range 8) 311 | -10/Materials | Build established: Mutant 353 | -10/Materials | Discovered new exit (range 10) 456 | -10/Materials | Entered Mines 457 | -10/Mines | Assembled infested the area 532 | -10/Mines | Destroyed 8 combat bots 569 | -10/Mines | Core integrity fell below 50% 581 | -10/Mines | Core integrity fell below 20% 585 | -10/Mines | Destroyed by D-53 Grenadier with Mini Grenade Launcher Last Messages --------------- 00507_ as-99130 destroyed. 00507_ as-14022 destroyed. 00508_ The unstable cave ceiling collapses. 00509_ as-74538 destroyed. 00510_ The unstable cave ceiling collapses. 00511_ as-10105 destroyed. 00521_ The unstable cave ceiling collapses. 00527_ Med. Laser destroyed. 00538_ as-57832 destroyed. 00548_ The unstable cave ceiling collapses. 00552_ S-10 Pest destroyed. 00566_ The unstable cave ceiling collapses. 00574_ EMP Blaster destroyed. 00575_ D-53 Grenadier suffers critical hit (Burn). 00576_ The unstable cave ceiling collapses. 00578_ Med. Laser destroyed. 00578_ Ion Engine destroyed. 00578_ Aluminum Leg destroyed. 00580_ Lgt. Armor Plating destroyed. 00582_ The unstable cave ceiling collapses. Map ----- +----------------------------------------------------+ | | | | | | | | | | | | | | | | | ?????????????????????????????????????????????????? | | ?????????????????????????????????????????????????? | | ?????????????????????????????????????????????????? | | ?????????????????????????????????????????????????? | | ?????????????????????????????????????????????????? | | ?????????????????????????????????????????????????? | | ?????????????????????????????????????????????????? | | ?????????????????????????????????????????????????? | | ????########????????????###??????????????????????? | | ????# #???????????? #??????????????????????? | | ????# #????????????#=#??????????????????????? | | ????# #####????###?#%#??????????????????????? | | ????# ###### ##[##?????????????????????? | | ????# ### ## # ###???????????????????? | | ????# #?# ## #???????????????????? | | ????########?# ## #???????????????????? | | ????????????## ##### ???????????? | | ????????????# @ #?????????? | | ????????????# = < % #??????????? | | ????????????# # ###### #??????????? | | ????????????# * d d #???????????????????? | | ????????????# # ## ##???????????????????? | | ????????????## #### # ?????????????????? | | ?????????????#####??## # ???????????????? | | ?????????????????????###### ??????????????? | | ??????????????????????????? ??????????????? | | ??????????????????????????? # ??????????????? | | ??????????????????????????? # ??????????????? | | ??????????????????????????? # ??????????????? | | ???????????????????????????? ???????????????? | | ???????????????????????????? ????????????????? | | ???????????????????????????? ???????????????????? | | ?????????????????????????????????????????????????? | | ?????????????????????????????????????????????????? | | ?????????????????????????????????????????????????? | | ?????????????????????????????????????????????????? | | ?????????????????????????????????????????????????? | | ?????????????????????????????????????????????????? | | ?????????????????????????????????????????????????? | | ?????????????????????????????????????????????????? | | ?????????????????????????????????????????????????? | | ?????????????????????????????????????????????????? | +----------------------------------------------------+ Best States ------------- Heat Dissipation 35 Energy Generation 10 Energy Capacity 250 Matter Stores 300 Matter Capacity 300 Sight Range 16 Terrain Scan Density 10 Armor Coverage 150 Resistance: KI 20 Resistance: TH 20 Resistance: EX 20 Resistance: EM 20 Resistance: I 20 Resistance: S 20 Resistance: P 20 Evasion (%) 55 Offensive Hacking 10 Item Schematics ----------------- None Robot Schematics ------------------ None Fabricated ------------ Nothing Alien Tech Used ----------------- None Achievements -------------- None Challenges ------------ None Game ------ Seed ThunderRemoteCompressor Manual? 0 Play Time 00:07:15 Cumulative 136.3 hours Start 2021.10.22 @ 18:56:05 End 2021.10.22 @ 19:02:26 Sessions 1 Manual Loads 0 Difficulty Adventurer Special Mode None Game No. 119 Rogue 14 Adventurer 103 Explorer 2 Win Type - Total 7 Types 3/0/1/0/0/1/1/1/0 Lore% 71 Gallery% 77 Achievement% 71 Wizard Run 0 Options --------- ASCII 0 Keyboard 0 Movement Mouse Keybinds 0 Fullscreen 1 Font 24/Smallcaps Map View 76x50 Tactical HUD 1 Map Filters NONE Filters NONE Steam 1 RUN: 5c9726dc-278d-49b7-a627-442dc188e3da